[Event "44th Chess Olympiad Women 2022"]
[Site "Chennai"]
[Date "2022.07.29"]
[Round "1.44"]
[White "Sokolova, Victoria"]
[Black "Elansary, Eman"]
[Result "0-1"]
[WhiteElo "1193"]
[BlackElo "1936"]
[Annotator "NA"]
[PlyCount "70"]
[EventDate "2022.??.??"]
[TimeControl "60"]

1. c4 {[%emt 0:00:08]} e6 {[%emt 0:00:29]} 2. Nc3 {[%emt 0:00:26]} d5 {[%emt 0:
00:00]} 3. cxd5 {[%emt 0:00:09]} exd5 {[%emt 0:00:06]} 4. d4 {[%emt 0:00:09]}
Nf6 {[%emt 0:00:42]} 5. Nf3 {[%emt 0:00:18]} Be7 {[%emt 0:04:01]} 6. Bf4 {
[%emt 0:00:24]} O-O {[%emt 0:00:22]} 7. e3 {[%emt 0:00:46]} c6 {[%emt 0:09:45]}
8. Bd3 {[%emt 0:00:40]} Bg4 {[%emt 0:00:37]} 9. O-O {[%emt 0:00:30]} Nbd7 {
[%emt 0:00:17]} 10. h3 {[%emt 0:00:08]} Bh5 {[%emt 0:00:16]} 11. g4 {[%emt 0:
00:00]} Bg6 {[%emt 0:00:14]} 12. Bxg6 {[%emt 0:00:13]} hxg6 {[%emt 0:03:24]}
13. Kg2 {[%emt 0:00:48]} Ne4 {[%emt 0:04:55]} 14. Nxe4 {[%emt 0:00:26]} dxe4 {
[%emt 0:00:03]} 15. Ne5 {[%emt 0:00:44]} Nxe5 {[%emt 0:00:37]} 16. Bxe5 {
[%emt 0:00:23]} Bd6 {[%emt 0:01:42]} 17. Bxd6 {[%emt 0:00:37]} Qxd6 {[%emt 0:
00:00]} 18. f3 {[%emt 0:00:37]} exf3+ {[%emt 0:01:34]} 19. Qxf3 {[%emt 0:00:33]
} Rae8 {[%emt 0:00:32]} 20. Rf2 {[%emt 0:01:01]} Re7 {[%emt 0:00:24]} 21. Re1 {
[%emt 0:00:29]} Rfe8 {[%emt 0:01:42]} 22. Rfe2 {[%emt 0:00:36]} Re4 {[%emt 0:
00:00]} 23. Qg3 {[%emt 0:03:55]} Qd5 {[%emt 0:03:05]} 24. Kf2 {[%emt 0:00:48]}
Qxa2 {[%emt 0:01:39]} 25. Qc7 {[%emt 0:00:56]} Qb3 {[%emt 0:01:47]} 26. Qa5 {
[%emt 0:04:31]} a6 {[%emt 0:02:01]} 27. Qg5 {[%emt 0:00:50]} Qe6 {[%emt 0:00:
00]} 28. Kf3 {[%emt 0:03:13]} Re7 {[%emt 0:03:10]} 29. h4 {[%emt 0:00:50]} Rd7
{[%emt 0:00:33]} 30. h5 {[%emt 0:02:13]} Rd5 {[%emt 0:03:07]} 31. Qh4 {[%emt 0:
00:00]} gxh5 {[%emt 0:01:46]} 32. Rh2 {[%emt 0:06:31]} Rxg4 {[%emt 0:00:35]}
33. Qh3 {[%emt 0:02:43]} Qe4+ {[%emt 0:00:22]} 34. Kf2 {[%emt 0:00:56]} Rf5+ {
[%emt 0:00:23]} 35. Ke2 {[%emt 0:00:43]} Qc2# {[%emt 0:00:12]} 0-1

[Event "44th Chess Olympiad Women 2022"]
[Site "Chennai"]
[Date "2022.07.29"]
[Round "1.44"]
[White "Wafa, Shahenda"]
[Black "Bouzana, Christina"]
[Result "1-0"]
[WhiteElo "2115"]
[BlackElo "1079"]
[Annotator "NA"]
[PlyCount "71"]
[EventDate "2022.??.??"]
[TimeControl "60"]

1. e4 {[%emt 0:00:04]} c6 {[%emt 0:00:07]} 2. d4 {[%emt 0:00:14]} d5 {[%emt 0:
00:00]} 3. Nc3 {[%emt 0:00:54]} dxe4 {[%emt 0:00:51]} 4. Nxe4 {[%emt 0:00:09]}
Bf5 {[%emt 0:01:25]} 5. Ng3 {[%emt 0:00:13]} Bg6 {[%emt 0:00:25]} 6. h4 {
[%emt 0:00:14]} h6 {[%emt 0:00:26]} 7. Nf3 {[%emt 0:00:38]} Nd7 {[%emt 0:01:27]
} 8. h5 {[%emt 0:02:24]} Bh7 {[%emt 0:00:13]} 9. Bd3 {[%emt 0:00:13]} Bxd3 {
[%emt 0:00:56]} 10. Qxd3 {[%emt 0:00:07]} e6 {[%emt 0:01:59]} 11. Bf4 {[%emt 0:
00:00]} Ngf6 {[%emt 0:02:02]} 12. O-O-O {[%emt 0:00:23]} Nd5 {[%emt 0:06:10]}
13. Bd2 {[%emt 0:01:49]} Bd6 {[%emt 0:11:47]} 14. Ne4 {[%emt 0:01:23]} Be7 {
[%emt 0:03:36]} 15. c4 {[%emt 0:02:54]} N5f6 {[%emt 0:02:43]} 16. Bc3 {[%emt 0:
00:00]} Nb6 {[%emt 0:10:44]} 17. Ba5 {[%emt 0:08:42]} Qc8 {[%emt 0:06:35]} 18.
Ne5 {[%emt 0:01:59]} Nbd7 {[%emt 0:05:57]} 19. Nxf6+ {[%emt 0:06:43]} Nxf6 {
[%emt 0:01:08]} 20. f4 {[%emt 0:05:44]} Bd6 {[%emt 0:06:32]} 21. g4 {[%emt 0:
00:00]} b6 {[%emt 0:11:21]} 22. Bc3 {[%emt 0:06:05]} Qc7 {[%emt 0:02:48]} 23.
Qf3 {[%emt 0:01:26]} O-O-O {[%emt 0:03:04]} 24. Nxc6 {[%emt 0:01:23]} Bxf4+ {
[%emt 0:00:54]} 25. Kb1 {[%emt 0:03:54]} Rd6 {[%emt 0:03:41]} 26. Nxa7+ {
[%emt 0:00:00]} Qxa7 {[%emt 0:00:28]} 27. Qxf4 {[%emt 0:00:00]} Rhd8 {[%emt 0:
00:00]} 28. Rc1 {[%emt 0:06:02]} Qb7 {[%emt 0:02:56]} 29. d5 {[%emt 0:02:21]}
exd5 {[%emt 0:03:28]} 30. cxd5 {[%emt 0:06:59]} Nxd5 {[%emt 0:01:40]} 31. Be5+
{[%emt 0:01:23]} Rc6 {[%emt 0:02:46]} 32. Qf5+ {[%emt 0:00:23]} Rd7 {[%emt 0:
00:00]} 33. Rxc6+ {[%emt 0:00:16]} Kd8 {[%emt 0:00:49]} 34. Rhc1 {[%emt 0:00:
00]} Ne7 {[%emt 0:01:50]} 35. Qxf7 {[%emt 0:00:21]} Nxc6 {[%emt 0:00:32]} 36.
Qf8# {[%emt 0:00:07]} 1-0

[Event "44th Chess Olympiad Women 2022"]
[Site "Chennai"]
[Date "2022.07.29"]
[Round "1.45"]
[White "Martins, Katlene Jussara"]
[Black "Nazarova, Anastasia"]
[Result "0-1"]
[WhiteElo "1287"]
[BlackElo "2208"]
[Annotator "ChessBase"]
[PlyCount "68"]
[EventDate "2022.??.??"]
[TimeControl "60"]

1. e4 {[%emt 0:00:03]} c5 {[%emt 0:00:06]} 2. Nc3 {[%emt 0:00:12]} Nc6 {
[%emt 0:00:04]} 3. Nf3 {[%emt 0:00:09]} g6 {[%emt 0:00:08]} 4. Bb5 {[%emt 0:00:
00]} Nd4 {[%emt 0:00:30]} 5. Ba4 {[%emt 0:00:47]} Bg7 {[%emt 0:00:11]} 6. O-O {
[%emt 0:00:16]} e6 {[%emt 0:01:51]} 7. d3 {[%emt 0:02:03]} a6 {[%emt 0:04:58]}
8. Re1 {[%emt 0:04:07]} b5 {[%emt 0:03:08]} 9. Bb3 {[%emt 0:04:48]} Bb7 {
[%emt 0:00:26]} 10. a4 {[%emt 0:04:15]} b4 {[%emt 0:04:21]} 11. Ne2 {[%emt 0:
00:00]} Nxb3 {[%emt 0:02:51]} 12. cxb3 {[%emt 0:01:28]} e5 {[%emt 0:01:19]} 13.
Qc2 {[%emt 0:01:51]} d6 {[%emt 0:02:52]} 14. Be3 {[%emt 0:02:23]} Rc8 {[%emt 0:
00:00]} 15. Rad1 {[%emt 0:01:35]} Ne7 {[%emt 0:00:29]} 16. Qc4 {[%emt 0:02:41]}
O-O {[%emt 0:10:27]} 17. h3 {[%emt 0:03:13]} h6 {[%emt 0:00:00]} 18. Rd2 {
[%emt 0:02:57]} Kh7 {[%emt 0:00:00]} 19. Ng3 {[%emt 0:04:19]} f5 {[%emt 0:00:
00]} 20. exf5 {[%emt 0:05:34]} gxf5 {[%emt 0:01:23]} 21. Nh5 {[%emt 0:02:00]}
f4 {[%emt 0:07:57]} 22. Bxf4 {[%emt 0:06:10]} exf4 {[%emt 0:01:51]} 23. Re4 {
[%emt 0:00:56]} d5 {[%emt 0:01:03]} 24. Qc1 {[%emt 0:02:04]} dxe4 {[%emt 0:00:
00]} 25. dxe4 {[%emt 0:00:29]} Qc7 {[%emt 0:01:15]} 26. Qc2 {[%emt 0:01:19]}
Ng6 {[%emt 0:01:17]} 27. g3 {[%emt 0:04:08]} fxg3 {[%emt 0:00:59]} 28. Rd3 {
[%emt 0:01:10]} Bxe4 {[%emt 0:00:22]} 29. Qe2 {[%emt 0:01:25]} gxf2+ {[%emt 0:
00:00]} 30. Kxf2 {[%emt 0:00:34]} Qh2+ {[%emt 0:00:55]} 31. Ke3 {[%emt 0:00:42]
} Rxf3+ {[%emt 0:00:45]} 32. Qxf3 {[%emt 0:01:26]} Bxf3 {[%emt 0:00:26]} 33.
Kxf3 {[%emt 0:00:11]} Rf8+ {[%emt 0:01:04]} 34. Ke4 {[%emt 0:00:28]} Qe5# {
[%emt 0:00:07]} 0-1

[Event "44th Chess Olympiad Women 2022"]
[Site "Chennai"]
[Date "2022.07.29"]
[Round "1.45"]
[White "Paasikangas, Johanna"]
[Black "Pio Monteiro, Juliana"]
[Result "1-0"]
[WhiteElo "2155"]
[BlackElo "1319"]
[Annotator "ChessBase"]
[PlyCount "59"]
[EventDate "2022.??.??"]
[TimeControl "60"]

1. d4 {[%emt 0:00:06]} Nf6 {[%emt 0:00:14]} 2. c4 {[%emt 0:00:23]} g6 {[%emt 0:
00:00]} 3. Nc3 {[%emt 0:00:10]} Bg7 {[%emt 0:00:12]} 4. e4 {[%emt 0:00:08]} d6
{[%emt 0:00:16]} 5. f4 {[%emt 0:00:51]} e5 {[%emt 0:03:29]} 6. dxe5 {[%emt 0:
00:00]} dxe5 {[%emt 0:04:50]} 7. Qxd8+ {[%emt 0:01:27]} Kxd8 {[%emt 0:00:23]}
8. fxe5 {[%emt 0:00:09]} Ng4 {[%emt 0:01:02]} 9. Bg5+ {[%emt 0:01:44]} Ke8 {
[%emt 0:00:55]} 10. h3 {[%emt 0:08:30]} Nxe5 {[%emt 0:07:00]} 11. Nd5 {[%emt 0:
00:00]} Na6 {[%emt 0:10:54]} 12. c5 {[%emt 0:21:21]} Rb8 {[%emt 0:13:24]} 13.
Bxa6 {[%emt 0:02:49]} bxa6 {[%emt 0:00:22]} 14. O-O-O {[%emt 0:00:25]} Bb7 {
[%emt 0:11:29]} 15. Nxc7+ {[%emt 0:09:05]} Kf8 {[%emt 0:01:01]} 16. Nd5 {
[%emt 0:00:43]} Rc8 {[%emt 0:15:15]} 17. Be7+ {[%emt 0:01:41]} Ke8 {[%emt 0:00:
00]} 18. Bd6 {[%emt 0:06:36]} Bxd5 {[%emt 0:09:39]} 19. Rxd5 {[%emt 0:02:41]}
Nc4 {[%emt 0:00:50]} 20. e5 {[%emt 0:01:15]} Nxd6 {[%emt 0:02:03]} 21. exd6 {
[%emt 0:00:16]} Kd7 {[%emt 0:00:17]} 22. Nf3 {[%emt 0:05:59]} Ke6 {[%emt 0:00:
00]} 23. Rhd1 {[%emt 0:00:28]} Rc6 {[%emt 0:01:41]} 24. d7 {[%emt 0:03:19]} Rd8
{[%emt 0:00:42]} 25. Ng5+ {[%emt 0:00:21]} Ke7 {[%emt 0:03:07]} 26. Re1+ {
[%emt 0:00:20]} Kf8 {[%emt 0:03:10]} 27. Nxh7+ {[%emt 0:00:13]} Kg8 {[%emt 0:
00:00]} 28. Re8+ {[%emt 0:00:17]} Rxe8 {[%emt 0:00:30]} 29. dxe8=Q+ {[%emt 0:
00:00]} Kxh7 {[%emt 0:00:05]} 30. Qxc6 {[%emt 0:00:12]} 1-0

[Event "44th Chess Olympiad Women 2022"]
[Site "Chennai"]
[Date "2022.07.29"]
[Round "1.45"]
[White "Puuska, Heini"]
[Black "Moreno, Akiane"]
[Result "1-0"]
[WhiteElo "2010"]
[BlackElo "1232"]
[Annotator "NA"]
[PlyCount "101"]
[EventDate "2022.??.??"]
[TimeControl "60"]

1. d4 {[%emt 0:00:11]} d5 {[%emt 0:00:05]} 2. Nf3 {[%emt 0:00:13]} Nf6 {
[%emt 0:00:59]} 3. e3 {[%emt 0:00:51]} e6 {[%emt 0:00:21]} 4. Bd3 {[%emt 0:00:
00]} Bd6 {[%emt 0:00:29]} 5. O-O {[%emt 0:00:28]} O-O {[%emt 0:00:21]} 6. b3 {
[%emt 0:00:36]} Re8 {[%emt 0:00:38]} 7. Bb2 {[%emt 0:00:38]} Nc6 {[%emt 0:00:
00]} 8. Ne5 {[%emt 0:03:04]} Re7 {[%emt 0:04:56]} 9. a3 {[%emt 0:01:48]} h6 {
[%emt 0:06:51]} 10. Nd2 {[%emt 0:05:20]} Qe8 {[%emt 0:01:06]} 11. c4 {[%emt 0:
00:00]} b6 {[%emt 0:02:55]} 12. Rc1 {[%emt 0:02:12]} Ba6 {[%emt 0:00:05]} 13.
Nxc6 {[%emt 0:01:33]} Qxc6 {[%emt 0:01:15]} 14. cxd5 {[%emt 0:01:42]} Qb7 {
[%emt 0:01:21]} 15. Bxa6 {[%emt 0:00:36]} Qxa6 {[%emt 0:01:12]} 16. dxe6 {
[%emt 0:00:35]} Rxe6 {[%emt 0:01:21]} 17. Re1 {[%emt 0:03:56]} Qb7 {[%emt 0:00:
00]} 18. Nc4 {[%emt 0:03:02]} Rd8 {[%emt 0:00:32]} 19. Qc2 Nh5 {[%emt 0:02:02]}
20. Nxd6 {[%emt 0:03:30]} Rdxd6 {[%emt 0:02:11]} 21. Qxc7 {[%emt 0:02:37]} Qxc7
{[%emt 0:03:48]} 22. Rxc7 {[%emt 0:01:55]} a5 {[%emt 0:00:00]} 23. Rec1 {
[%emt 0:02:05]} Kh7 {[%emt 0:00:14]} 24. Rxf7 {[%emt 0:00:41]} b5 {[%emt 0:00:
00]} 25. Rf5 {[%emt 0:03:43]} Nf6 {[%emt 0:00:48]} 26. Rxb5 {[%emt 0:00:32]}
Ne4 {[%emt 0:01:14]} 27. f3 {[%emt 0:03:59]} Rc6 {[%emt 0:00:32]} 28. fxe4 {
[%emt 0:00:55]} Rxc1+ {[%emt 0:00:24]} 29. Bxc1 {[%emt 0:00:08]} Rxe4 {[%emt 0:
00:00]} 30. Rxa5 {[%emt 0:01:00]} Re8 {[%emt 0:00:25]} 31. b4 {[%emt 0:00:31]}
Rc8 {[%emt 0:00:10]} 32. Rc5 {[%emt 0:00:14]} Rf8 {[%emt 0:01:21]} 33. b5 {
[%emt 0:00:17]} g5 {[%emt 0:00:06]} 34. b6 {[%emt 0:01:36]} Kg6 {[%emt 0:01:04]
} 35. a4 {[%emt 0:00:50]} Kh5 {[%emt 0:00:20]} 36. a5 {[%emt 0:00:53]} Kh4 {
[%emt 0:00:22]} 37. Bd2 {[%emt 0:00:46]} Rb8 {[%emt 0:01:06]} 38. Be1+ {
[%emt 0:00:32]} Kh5 {[%emt 0:00:25]} 39. Bg3 {[%emt 0:00:27]} Re8 {[%emt 0:00:
00]} 40. Be5 {[%emt 0:00:13]} Kh4 {[%emt 0:01:23]} 41. b7 {[%emt 0:30:26]} Kg4
{[%emt 0:31:03]} 42. b8=Q {[%emt 0:00:24]} Rxb8 {[%emt 0:01:02]} 43. Bxb8 {
[%emt 0:00:13]} Kh5 {[%emt 0:03:49]} 44. a6 {[%emt 0:00:16]} Kg6 {[%emt 0:00:
00]} 45. a7 {[%emt 0:00:14]} h5 {[%emt 0:00:05]} 46. a8=Q {[%emt 0:00:18]} h4 {
[%emt 0:00:20]} 47. Qe4+ {[%emt 0:00:52]} Kh5 {[%emt 0:00:24]} 48. Qf3+ {
[%emt 0:00:14]} Kg6 {[%emt 0:00:46]} 49. Rc6+ {[%emt 0:00:09]} Kh7 {[%emt 0:00:
00]} 50. Qf7+ {[%emt 0:02:27]} Kh8 {[%emt 0:00:22]} 51. Rc8# {[%emt 0:00:09]}
1-0

[Event "44th Chess Olympiad Women 2022"]
[Site "Chennai"]
[Date "2022.07.29"]
[Round "1.46"]
[White "Appau Abena Tiwaa"]
[Black "Malikova, Marjona"]
[Result "0-1"]
[WhiteElo "1103"]
[BlackElo "1756"]
[Annotator "NA"]
[PlyCount "62"]
[EventDate "2022.??.??"]
[TimeControl "60"]

1. d4 {[%emt 0:00:05]} Nf6 {[%emt 0:00:17]} 2. Bf4 {[%emt 0:00:17]} e6 {
[%emt 0:00:42]} 3. e3 {[%emt 0:00:32]} c5 {[%emt 0:00:47]} 4. Nf3 {[%emt 0:00:
00]} cxd4 {[%emt 0:00:44]} 5. Nxd4 {[%emt 0:00:37]} e5 {[%emt 0:02:56]} 6. Bxe5
{[%emt 0:22:42]} Qa5+ {[%emt 0:01:02]} 7. c3 {[%emt 0:00:56]} Qxe5 {[%emt 0:00:
00]} 8. Nd2 {[%emt 0:02:21]} Nc6 {[%emt 0:06:10]} 9. N4f3 {[%emt 0:05:09]} Qc7
{[%emt 0:04:22]} 10. Bd3 {[%emt 0:02:41]} d5 {[%emt 0:02:40]} 11. Qc2 {[%emt 0:
00:00]} Bd6 {[%emt 0:04:05]} 12. O-O-O {[%emt 0:02:28]} Be6 {[%emt 0:08:07]}
13. Rde1 {[%emt 0:03:38]} O-O-O {[%emt 0:01:39]} 14. e4 {[%emt 0:02:53]} dxe4 {
[%emt 0:01:47]} 15. Nxe4 {[%emt 0:02:11]} Nxe4 {[%emt 0:00:17]} 16. Bxe4 {
[%emt 0:00:39]} Bxa2 {[%emt 0:02:27]} 17. b3 {[%emt 0:02:08]} Ba3+ {[%emt 0:00:
00]} 18. Qb2 {[%emt 0:04:09]} Bxb2+ {[%emt 0:00:15]} 19. Kxb2 {[%emt 0:00:24]}
Bxb3 {[%emt 0:01:08]} 20. Kxb3 {[%emt 0:00:23]} Qb6+ {[%emt 0:01:03]} 21. Ka3 {
[%emt 0:00:59]} Qc5+ {[%emt 0:00:48]} 22. Kb3 {[%emt 0:01:00]} Na5+ {[%emt 0:
00:00]} 23. Kc2 {[%emt 0:01:57]} Qxf2+ {[%emt 0:00:47]} 24. Kb1 {[%emt 0:00:34]
} Nc4 {[%emt 0:00:42]} 25. Bf5+ {[%emt 0:02:11]} Kb8 {[%emt 0:00:19]} 26. Bc2 {
[%emt 0:02:14]} Na3+ {[%emt 0:00:21]} 27. Kb2 {[%emt 0:09:06]} Qxc2+ {[%emt 0:
00:00]} 28. Kxa3 {[%emt 0:00:35]} Qxc3+ {[%emt 0:00:06]} 29. Ka2 {[%emt 0:00:
00]} Rd6 {[%emt 0:00:36]} 30. Re5 {[%emt 0:11:17]} Ra6+ {[%emt 0:00:11]} 31.
Kb1 {[%emt 0:01:15]} Ra1# {[%emt 0:00:05]} 0-1

[Event "44th Chess Olympiad Women 2022"]
[Site "Chennai"]
[Date "2022.07.29"]
[Round "1.46"]
[White "Benson, Maud"]
[Black "Bobomurodova, Maftuna"]
[Result "0-1"]
[WhiteElo "1334"]
[BlackElo "1914"]
[Annotator "NA RC"]
[PlyCount "100"]
[EventDate "2022.??.??"]
[TimeControl "60"]

1. d4 {[%emt 0:00:04]} d5 {[%emt 0:00:21]} 2. c4 {[%emt 0:00:28]} dxc4 {
[%emt 0:00:09]} 3. e4 {[%emt 0:00:20]} Nf6 {[%emt 0:00:42]} 4. Nc3 {[%emt 0:00:
00]} e5 {[%emt 0:10:14]} 5. Nf3 {[%emt 0:05:47]} exd4 {[%emt 0:02:20]} 6. Nxd4
{[%emt 0:03:27]} c5 {[%emt 0:03:34]} 7. Ndb5 {[%emt 0:03:52]} a6 {[%emt 0:00:
00]} 8. Qa4 {[%emt 0:04:54]} Bd7 {[%emt 0:07:54]} 9. Bf4 {[%emt 0:03:37]} Be7 {
[%emt 0:05:02]} 10. Nc7+ {[%emt 0:15:12]} Qxc7 {[%emt 0:00:33]} 11. Bxc7 {
[%emt 0:00:23]} Bxa4 {[%emt 0:00:02]} 12. Nxa4 {[%emt 0:00:10]} Nbd7 {[%emt 0:
00:00]} 13. Nc3 {[%emt 0:06:36]} Rc8 {[%emt 0:02:18]} 14. Bf4 {[%emt 0:00:33]}
b5 {[%emt 0:00:08]} 15. f3 {[%emt 0:05:44]} Nh5 {[%emt 0:08:19]} 16. Be3 {
[%emt 0:04:57]} Ne5 {[%emt 0:02:39]} 17. Kd2 {[%emt 0:06:41]} O-O {[%emt 0:00:
00]} 18. Nd5 {[%emt 0:04:46]} Rfd8 {[%emt 0:04:38]} 19. Kc2 {[%emt 0:00:31]}
Bf8 {[%emt 0:02:40]} 20. Be2 {[%emt 0:01:36]} Nc6 {[%emt 0:01:03]} 21. Kc3 {
[%emt 0:04:52]} g6 {[%emt 0:02:53]} 22. Rad1 {[%emt 0:03:01]} Bg7+ {[%emt 0:00:
00]} 23. Kc2 {[%emt 0:01:03]} Bd4 {[%emt 0:00:49]} 24. Kb1 {[%emt 0:04:59]}
Bxe3 {[%emt 0:00:27]} 25. Nxe3 {[%emt 0:02:20]} Nf4 {[%emt 0:00:06]} 26. Rxd8+
{[%emt 0:03:29]} Rxd8 {[%emt 0:00:03]} 27. Re1 {[%emt 0:00:30]} Rd2 {[%emt 0:
00:00]} 28. Bf1 {[%emt 0:00:55]} Nb4 {[%emt 0:02:08]} 29. Rd1 {[%emt 0:06:18]}
Rd4 {[%emt 0:02:36]} 30. Rxd4 {[%emt 0:01:57]} cxd4 {[%emt 0:00:02]} 31. Nc2 {
[%emt 0:00:38]} Nc6 {[%emt 0:00:10]} 32. g3 {[%emt 0:01:52]} Ne6 {[%emt 0:00:
00]} 33. a4 {[%emt 0:01:06]} d3 {[%emt 0:00:57]} 34. Na3 {[%emt 0:01:06]} Ned4
{[%emt 0:00:10]} 35. axb5 {[%emt 0:00:27]} d2 {[%emt 0:00:40]} 36. Be2 {
[%emt 0:00:32]} Nxe2 {[%emt 0:00:04]} 37. Kc2 {[%emt 0:00:28]} Ned4+ {[%emt 0:
00:00]} 38. Kxd2 {[%emt 0:00:10]} axb5 {[%emt 0:00:06]} 39. Ke3 {[%emt 0:00:53]
} Kf8 {[%emt 0:00:16]} 40. Nb1 {[%emt 0:00:21]} Ke7 {[%emt 0:00:08]} 41. Nc3 {
[%emt 0:30:38]} Kd6 {[%emt 0:30:12]} 42. f4 {[%emt 0:00:29]} Kc5 {[%emt 0:00:
00]} 43. Nd5 {[%emt 0:00:19]} b4 {[%emt 0:00:07]} 44. g4 {[%emt 0:00:39]} Nb5 {
[%emt 0:00:39]} 45. g5 {[%emt 0:00:00]} c3 {[%emt 0:00:00]} 46. bxc3 {[%emt 0:
00:00]} Nxc3 {[%emt 0:00:00]} 47. Nxb4 {[%emt 0:00:00]} Nxb4 {[%emt 0:00:00]}
48. h4 {[%emt 0:00:00]} Nd1+ {[%emt 0:00:00]} 49. Kf3 {[%emt 0:00:00]} Kd4 {
[%emt 0:00:00]} 50. f5 {[%emt 0:00:00]} Ke5 {[%emt 0:05:39]} 0-1

[Event "44th Chess Olympiad Women 2022"]
[Site "Chennai"]
[Date "2022.07.29"]
[Round "1.46"]
[White "Khamdamova, Afruza"]
[Black "Dotse Dzidzor Esi"]
[Result "1-0"]
[WhiteElo "1969"]
[BlackElo "1195"]
[Annotator "NA"]
[PlyCount "83"]
[EventDate "2022.??.??"]
[TimeControl "60"]

1. e4 {[%emt 0:00:06]} c6 {[%emt 0:00:13]} 2. d4 {[%emt 0:00:08]} d5 {[%emt 0:
00:00]} 3. Nc3 {[%emt 0:00:17]} e6 {[%emt 0:02:45]} 4. Nf3 {[%emt 0:00:42]} c5
{[%emt 0:03:52]} 5. exd5 {[%emt 0:00:17]} exd5 {[%emt 0:04:50]} 6. dxc5 {
[%emt 0:00:09]} Bxc5 {[%emt 0:02:27]} 7. Qxd5 {[%emt 0:03:16]} Nd7 {[%emt 0:00:
00]} 8. Bc4 {[%emt 0:03:26]} Qe7+ {[%emt 0:03:41]} 9. Qe4 {[%emt 0:01:18]} Ngf6
{[%emt 0:06:20]} 10. Qxe7+ {[%emt 0:00:22]} Bxe7 {[%emt 0:00:16]} 11. O-O {
[%emt 0:00:29]} O-O {[%emt 0:00:14]} 12. Re1 {[%emt 0:02:16]} Re8 {[%emt 0:00:
00]} 13. Ng5 {[%emt 0:00:58]} Ne5 {[%emt 0:28:42]} 14. Rxe5 {[%emt 0:00:28]}
Be6 {[%emt 0:00:15]} 15. Nxe6 {[%emt 0:00:17]} Bd6 {[%emt 0:01:38]} 16. Re2 {
[%emt 0:00:18]} fxe6 {[%emt 0:07:46]} 17. Bxe6+ {[%emt 0:00:10]} Kh8 {[%emt 0:
00:00]} 18. Bg5 {[%emt 0:00:12]} Rf8 {[%emt 0:07:19]} 19. Nd5 {[%emt 0:00:50]}
Nxd5 {[%emt 0:01:53]} 20. Bxd5 {[%emt 0:00:06]} Rab8 {[%emt 0:02:24]} 21. Be7 {
[%emt 0:00:29]} Bxe7 {[%emt 0:01:00]} 22. Rxe7 {[%emt 0:06:27]} Rbe8 {[%emt 0:
00:00]} 23. Rae1 {[%emt 0:00:13]} Rxe7 {[%emt 0:00:18]} 24. Rxe7 {[%emt 0:00:
00]} h6 {[%emt 0:01:08]} 25. Rxb7 {[%emt 0:00:08]} a6 {[%emt 0:01:30]} 26. c4 {
[%emt 0:00:13]} Kh7 {[%emt 0:00:24]} 27. c5 {[%emt 0:00:26]} Rd8 {[%emt 0:00:
00]} 28. Be4+ {[%emt 0:00:07]} Kg8 {[%emt 0:00:24]} 29. f3 {[%emt 0:00:06]} Kf8
{[%emt 0:00:14]} 30. c6 {[%emt 0:00:08]} Rd1+ {[%emt 0:04:11]} 31. Kf2 {
[%emt 0:00:06]} Rd2+ {[%emt 0:00:12]} 32. Ke3 {[%emt 0:00:06]} Rd8 {[%emt 0:00:
00]} 33. c7 {[%emt 0:00:13]} Rc8 {[%emt 0:01:14]} 34. Rb8 {[%emt 0:00:05]} Re8
{[%emt 0:02:09]} 35. Rxe8+ {[%emt 0:00:18]} Kxe8 {[%emt 0:00:39]} 36. c8=Q+ {
[%emt 0:00:08]} Ke7 {[%emt 0:00:00]} 37. Bd5 {[%emt 0:00:00]} a5 {[%emt 0:00:
00]} 38. Qe6+ {[%emt 0:00:00]} Kd8 {[%emt 0:00:00]} 39. Qd6+ {[%emt 0:00:00]}
Ke8 {[%emt 0:00:00]} 40. Be6 {[%emt 0:00:00]} g5 {[%emt 0:00:00]} 41. Qd7+ {
[%emt 0:00:33]} Kf8 {[%emt 0:04:02]} 42. Qf7# {[%emt 0:00:04]} 1-0

[Event "44th Chess Olympiad Women 2022"]
[Site "Chennai"]
[Date "2022.07.29"]
[Round "1.46"]
[White "Omonova, Umida"]
[Black "Felix, Tobi"]
[Result "1-0"]
[WhiteElo "2195"]
[BlackElo "1460"]
[Annotator "ChessBase"]
[PlyCount "57"]
[EventDate "2022.??.??"]
[TimeControl "60"]

1. e4 {[%emt 0:00:12]} c6 {[%emt 0:00:31]} 2. d4 {[%emt 0:00:15]} d5 {[%emt 0:
00:00]} 3. Nd2 {[%emt 0:00:11]} dxe4 {[%emt 0:00:34]} 4. Nxe4 {[%emt 0:00:18]}
Nf6 {[%emt 0:00:32]} 5. Nxf6+ {[%emt 0:00:42]} exf6 {[%emt 0:00:06]} 6. c3 {
[%emt 0:00:34]} Bd6 {[%emt 0:02:15]} 7. Bd3 {[%emt 0:03:45]} O-O {[%emt 0:00:
00]} 8. Qc2 {[%emt 0:00:29]} h6 {[%emt 0:01:49]} 9. Ne2 {[%emt 0:00:10]} Re8 {
[%emt 0:03:53]} 10. Be3 {[%emt 0:01:21]} Be6 {[%emt 0:11:50]} 11. O-O {[%emt 0:
00:00]} Qc7 {[%emt 0:01:52]} 12. h3 {[%emt 0:02:18]} Nd7 {[%emt 0:03:03]} 13.
Rad1 {[%emt 0:00:31]} Rad8 {[%emt 0:06:53]} 14. c4 {[%emt 0:02:31]} Qb8 {
[%emt 0:07:37]} 15. d5 {[%emt 0:05:18]} cxd5 {[%emt 0:07:45]} 16. cxd5 {
[%emt 0:00:22]} Rc8 {[%emt 0:03:31]} 17. Qa4 {[%emt 0:04:14]} Bxh3 {[%emt 0:00:
00]} 18. gxh3 {[%emt 0:00:09]} Nc5 {[%emt 0:12:20]} 19. Bxc5 {[%emt 0:01:52]}
Rxc5 {[%emt 0:03:05]} 20. Rfe1 {[%emt 0:01:20]} a6 {[%emt 0:05:43]} 21. Nd4 {
[%emt 0:04:09]} Rec8 {[%emt 0:07:21]} 22. Qb3 {[%emt 0:03:44]} Kh8 {[%emt 0:00:
00]} 23. Re2 {[%emt 0:01:22]} Rc1 {[%emt 0:08:50]} 24. Kg2 {[%emt 0:00:57]}
R1c7 {[%emt 0:01:30]} 25. Rde1 {[%emt 0:00:06]} Be5 {[%emt 0:01:02]} 26. Nf3 {
[%emt 0:02:22]} Re7 {[%emt 0:01:25]} 27. Qb6 {[%emt 0:01:02]} Bc7 {[%emt 0:00:
00]} 28. Qd4 {[%emt 0:00:27]} Rxe2 {[%emt 0:00:19]} 29. Rxe2 {[%emt 0:00:01]}
1-0

[Event "44th Chess Olympiad Women 2022"]
[Site "Chennai"]
[Date "2022.07.29"]
[Round "1.47"]
[White "Fredericia, Louise"]
[Black "Aponte, Samantha"]
[Result "1-0"]
[WhiteElo "1990"]
[BlackElo "1087"]
[Annotator "NA"]
[PlyCount "59"]
[EventDate "2022.??.??"]
[TimeControl "60"]

1. e4 {[%emt 0:00:14]} e5 {[%emt 0:00:22]} 2. Nc3 {[%emt 0:00:07]} Nc6 {
[%emt 0:01:20]} 3. g3 {[%emt 0:00:15]} Nf6 {[%emt 0:02:41]} 4. Bg2 {[%emt 0:00:
00]} Bc5 {[%emt 0:01:58]} 5. Nge2 {[%emt 0:00:13]} d6 {[%emt 0:01:02]} 6. h3 {
[%emt 0:01:27]} Be6 {[%emt 0:05:53]} 7. O-O {[%emt 0:03:57]} Qd7 {[%emt 0:00:
00]} 8. Kh2 {[%emt 0:00:18]} O-O-O {[%emt 0:02:12]} 9. Na4 {[%emt 0:02:32]} Bb6
{[%emt 0:01:01]} 10. Nxb6+ {[%emt 0:05:05]} axb6 {[%emt 0:00:39]} 11. f4 {
[%emt 0:06:44]} Qe7 {[%emt 0:13:15]} 12. d3 {[%emt 0:07:01]} Kb8 {[%emt 0:00:
00]} 13. f5 {[%emt 0:05:06]} Bc8 {[%emt 0:01:14]} 14. g4 {[%emt 0:00:14]} Rdf8
{[%emt 0:08:02]} 15. Ng3 {[%emt 0:07:18]} Nd7 {[%emt 0:09:32]} 16. c3 {[%emt 0:
00:00]} f6 {[%emt 0:02:29]} 17. b4 {[%emt 0:00:34]} b5 {[%emt 0:06:19]} 18. a4
{[%emt 0:01:29]} Nb6 {[%emt 0:10:58]} 19. axb5 {[%emt 0:01:31]} Na7 {[%emt 0:
00:00]} 20. c4 {[%emt 0:01:16]} Bd7 {[%emt 0:02:02]} 21. Be3 {[%emt 0:01:21]}
Nbc8 {[%emt 0:03:20]} 22. Bxa7+ {[%emt 0:01:58]} Nxa7 {[%emt 0:00:29]} 23. Qa4
{[%emt 0:00:12]} Kc8 {[%emt 0:01:20]} 24. Qxa7 {[%emt 0:00:21]} Kd8 {[%emt 0:
00:00]} 25. Qxb7 {[%emt 0:01:20]} Bc8 {[%emt 0:01:44]} 26. Ra8 {[%emt 0:02:34]}
Qd7 {[%emt 0:00:53]} 27. Rfa1 {[%emt 0:00:41]} Ke7 {[%emt 0:00:54]} 28. Qd5 {
[%emt 0:00:23]} Qd8 {[%emt 0:01:39]} 29. b6 {[%emt 0:02:07]} Qd7 {[%emt 0:00:
00]} 30. R1a7 {[%emt 0:00:49]} 1-0